[Event "Early-Titled-Tuesday-Blitz-March-19-2024"]
[Site "Chess.com"]
[Date "2024.03.19"]
[Round "2"]
[White "agvania123"]
[Black "GelmanAlexander"]
[Result "0-1"]
[WhiteElo "2400"]
[BlackElo "2709"]
[TimeControl "180+1"]
[EndTime "8:16:57 PDT"]
[Termination "GelmanAlexander won by resignation"]

1. c4 {[%clk 0:03:00.9]} 1... c5 {[%clk 0:03:00.1]} 2. Nc3 {[%clk 0:03:00.7]}
2... d6 {[%clk 0:03:00.5]} 3. Nf3 {[%clk 0:03:00.7]} 3... e6 {[%clk 0:03:00.8]}
4. e3 {[%clk 0:03:00.7]} 4... Nd7 {[%clk 0:03:00.5]} 5. d4 {[%clk 0:03:01.1]}
5... Ngf6 {[%clk 0:03:01.1]} 6. Be2 {[%clk 0:03:00.8]} 6... a6 {[%clk
0:03:01.3]} 7. O-O {[%clk 0:02:59.2]} 7... b6 {[%clk 0:03:01.3]} 8. b3 {[%clk
0:02:59.7]} 8... Bb7 {[%clk 0:03:01.6]} 9. Bb2 {[%clk 0:03:00]} 9... Rg8 {[%clk
0:03:01.3]} 10. Rc1 {[%clk 0:02:58.8]} 10... g5 {[%clk 0:03:01.3]} 11. Qd2
{[%clk 0:02:53.2]} 11... g4 {[%clk 0:03:01.2]} 12. Ne1 {[%clk 0:02:52.9]} 12...
h5 {[%clk 0:03:01.1]} 13. dxc5 {[%clk 0:02:52.3]} 13... dxc5 {[%clk 0:02:52.7]}
14. Nd3 {[%clk 0:02:50.8]} 14... Qc7 {[%clk 0:02:52.9]} 15. Rfd1 {[%clk
0:02:49.5]} 15... h4 {[%clk 0:02:48.7]} 16. Nf4 {[%clk 0:02:47.3]} 16... O-O-O
{[%clk 0:02:46.5]} 17. Na4 {[%clk 0:02:33.9]} 17... Be7 {[%clk 0:02:44.6]} 18.
Bd3 {[%clk 0:02:17.8]} 18... h3 {[%clk 0:02:42.6]} 19. a3 {[%clk 0:01:38.8]}
19... Bd6 {[%clk 0:02:29.4]} 20. b4 {[%clk 0:01:12.4]} 20... Bxf4 {[%clk
0:02:26.1]} 21. exf4 {[%clk 0:01:13.3]} 21... Qc6 {[%clk 0:02:16.1]} 22. Bf1
{[%clk 0:01:01.4]} 22... hxg2 {[%clk 0:02:13]} 23. Be2 {[%clk 0:00:59.7]} 23...
Qxa4 {[%clk 0:02:13.2]} 24. Qd6 {[%clk 0:00:50.1]} 24... Qc6 {[%clk 0:01:41.7]}
25. bxc5 {[%clk 0:00:48]} 25... Qxc5 {[%clk 0:01:35.2]} 26. a4 {[%clk 0:00:19]}
26... Ne4 {[%clk 0:01:28.1]} 27. Qxc5+ {[%clk 0:00:16]} 27... Ndxc5 {[%clk
0:01:29]} 28. a5 {[%clk 0:00:10.9]} 28... bxa5 {[%clk 0:01:29.3]} 29. Ba3 {[%clk
0:00:09.6]} 29... Rxd1+ {[%clk 0:01:25.9]} 30. Rxd1 {[%clk 0:00:09.6]} 30... Rd8
{[%clk 0:01:25.6]} 31. Rxd8+ {[%clk 0:00:08.7]} 31... Kxd8 {[%clk 0:01:25.8]}
32. Bxg4 {[%clk 0:00:09.2]} 32... Nd3 {[%clk 0:01:17.5]} 33. Bf3 {[%clk
0:00:08.9]} 33... Nxf4 {[%clk 0:01:16.7]} 34. Bxe4 {[%clk 0:00:04.7]} 34... Bxe4
{[%clk 0:01:16]} 0-1

[Event "Early-Titled-Tuesday-Blitz-March-19-2024"]
[Site "Chess.com"]
[Date "2024.03.19"]
[Round "2"]
[White "mbojan"]
[Black "DmitriiZakurdaev"]
[Result "1-0"]
[WhiteElo "2795"]
[BlackElo "2426"]
[TimeControl "180+1"]
[EndTime "8:16:58 PDT"]
[Termination "mbojan won by checkmate"]

1. d4 {[%clk 0:03:00.9]} 1... d5 {[%clk 0:02:56.8]} 2. c4 {[%clk 0:03:01]} 2...
e6 {[%clk 0:02:57.4]} 3. Nf3 {[%clk 0:03:01.4]} 3... Nf6 {[%clk 0:02:58]} 4. Nc3
{[%clk 0:03:01]} 4... Be7 {[%clk 0:02:58.5]} 5. Bg5 {[%clk 0:02:59.8]} 5... h6
{[%clk 0:02:58.5]} 6. Bxf6 {[%clk 0:02:58.8]} 6... Bxf6 {[%clk 0:02:59.4]} 7. e3
{[%clk 0:02:59.2]} 7... O-O {[%clk 0:02:58.7]} 8. Qc2 {[%clk 0:02:59.1]} 8... a6
{[%clk 0:02:54.4]} 9. cxd5 {[%clk 0:02:55.4]} 9... exd5 {[%clk 0:02:55.3]} 10.
Be2 {[%clk 0:02:50.4]} 10... c6 {[%clk 0:02:55.8]} 11. O-O {[%clk 0:02:50.8]}
11... Re8 {[%clk 0:02:55.8]} 12. b4 {[%clk 0:02:48.8]} 12... Nd7 {[%clk
0:02:52.2]} 13. a4 {[%clk 0:02:44.4]} 13... Nb6 {[%clk 0:02:34.5]} 14. b5 {[%clk
0:02:34.7]} 14... cxb5 {[%clk 0:02:31.4]} 15. axb5 {[%clk 0:02:35]} 15... a5
{[%clk 0:02:32]} 16. Na4 {[%clk 0:02:35.1]} 16... Nxa4 {[%clk 0:02:20.7]} 17.
Qxa4 {[%clk 0:02:36]} 17... b6 {[%clk 0:02:18.7]} 18. Rfc1 {[%clk 0:02:35.8]}
18... Bg4 {[%clk 0:02:15]} 19. h3 {[%clk 0:02:35.4]} 19... Bh5 {[%clk
0:02:14.4]} 20. Rc6 {[%clk 0:02:34.5]} 20... Rb8 {[%clk 0:02:06.7]} 21. Rac1
{[%clk 0:02:34.3]} 21... Qe7 {[%clk 0:02:06]} 22. Qb3 {[%clk 0:02:32.7]} 22...
Red8 {[%clk 0:01:59.3]} 23. Rc7 {[%clk 0:02:27.8]} 23... Rd7 {[%clk 0:01:45.9]}
24. Rxd7 {[%clk 0:02:27.6]} 24... Qxd7 {[%clk 0:01:46]} 25. Ne5 {[%clk
0:02:28.3]} 25... Bxe5 {[%clk 0:01:44.8]} 26. Bxh5 {[%clk 0:02:28.5]} 26... Bd6
{[%clk 0:01:32.6]} 27. Bf3 {[%clk 0:02:28.2]} 27... Rc8 {[%clk 0:01:30.3]} 28.
Rxc8+ {[%clk 0:02:14.6]} 28... Qxc8 {[%clk 0:01:31.2]} 29. g3 {[%clk 0:02:11.7]}
29... Qxh3 {[%clk 0:01:22]} 30. Bxd5 {[%clk 0:02:11.5]} 30... Qd7 {[%clk
0:01:01.9]} 31. Qc4 {[%clk 0:02:11]} 31... Qc7 {[%clk 0:01:01.7]} 32. Qb3 {[%clk
0:01:59.3]} 32... Kf8 {[%clk 0:00:59]} 33. Kg2 {[%clk 0:01:59.4]} 33... Bb4
{[%clk 0:00:52.1]} 34. Qd3 {[%clk 0:01:58.5]} 34... Qd7 {[%clk 0:00:43.6]} 35.
Qe4 {[%clk 0:01:55.3]} 35... a4 {[%clk 0:00:40.8]} 36. Bc4 {[%clk 0:01:38.4]}
36... a3 {[%clk 0:00:36.6]} 37. Qh7 {[%clk 0:01:32.7]} 37... Qc7 {[%clk
0:00:26.9]} 38. Qh8+ {[%clk 0:01:29.2]} 38... Ke7 {[%clk 0:00:26.7]} 39. Bd5
{[%clk 0:01:21.8]} 39... Qd6 {[%clk 0:00:20.2]} 40. Qa8 {[%clk 0:01:19.8]} 40...
Kf6 {[%clk 0:00:18.6]} 41. Qb7 {[%clk 0:01:18.9]} 41... g6 {[%clk 0:00:18.5]}
42. Qxf7+ {[%clk 0:01:18.8]} 42... Kg5 {[%clk 0:00:18.5]} 43. f4+ {[%clk
0:01:19.6]} 43... Kh5 {[%clk 0:00:18.7]} 44. Bf3# {[%clk 0:01:20.5]} 1-0

[Event "Early-Titled-Tuesday-Blitz-March-19-2024"]
[Site "Chess.com"]
[Date "2024.03.19"]
[Round "2"]
[White "AA95"]
[Black "Alina_Gumerovna"]
[Result "1-0"]
[WhiteElo "2492"]
[BlackElo "2156"]
[TimeControl "180+1"]
[EndTime "8:16:58 PDT"]
[Termination "AA95 won by resignation"]

1. Nf3 {[%clk 0:03:00.9]} 1... Nf6 {[%clk 0:02:59.4]} 2. g3 {[%clk 0:03:01.3]}
2... c5 {[%clk 0:02:58]} 3. Bg2 {[%clk 0:03:01.7]} 3... g6 {[%clk 0:02:57]} 4.
O-O {[%clk 0:03:01.8]} 4... Bg7 {[%clk 0:02:57.3]} 5. c3 {[%clk 0:03:02.1]} 5...
O-O {[%clk 0:02:56.2]} 6. d4 {[%clk 0:03:02.5]} 6... cxd4 {[%clk 0:02:52.7]} 7.
cxd4 {[%clk 0:03:02.9]} 7... d6 {[%clk 0:02:51]} 8. Nc3 {[%clk 0:03:03.1]} 8...
a6 {[%clk 0:02:47.3]} 9. Bg5 {[%clk 0:02:56.4]} 9... Nbd7 {[%clk 0:02:44.8]} 10.
Rc1 {[%clk 0:02:55.4]} 10... h6 {[%clk 0:02:40.1]} 11. Bf4 {[%clk 0:02:52.8]}
11... Rb8 {[%clk 0:02:34.2]} 12. e4 {[%clk 0:02:48.9]} 12... Nh5 {[%clk
0:02:34.2]} 13. Be3 {[%clk 0:02:48]} 13... e5 {[%clk 0:02:32]} 14. Nd5 {[%clk
0:02:41.2]} 14... b5 {[%clk 0:02:24.6]} 15. Qd2 {[%clk 0:02:35]} 15... Kh7
{[%clk 0:02:23.4]} 16. Rfd1 {[%clk 0:02:30.3]} 16... Bb7 {[%clk 0:02:20.5]} 17.
dxe5 {[%clk 0:02:20.4]} 17... Nxe5 {[%clk 0:02:17.8]} 18. b3 {[%clk 0:01:47.1]}
18... Bxd5 {[%clk 0:01:40.4]} 19. Qxd5 {[%clk 0:01:45.6]} 19... Nf6 {[%clk
0:01:39.6]} 20. Qxd6 {[%clk 0:01:40.3]} 20... Qxd6 {[%clk 0:01:39.5]} 21. Rxd6
{[%clk 0:01:40.3]} 21... Neg4 {[%clk 0:01:40.4]} 22. e5 {[%clk 0:01:13.5]} 22...
Ne4 {[%clk 0:01:36.8]} 23. Rxa6 {[%clk 0:01:11]} 23... Ra8 {[%clk 0:01:30.9]}
24. Rxa8 {[%clk 0:01:04.8]} 24... Rxa8 {[%clk 0:01:31.8]} 25. Nd4 {[%clk
0:00:59.7]} 25... f5 {[%clk 0:00:55.1]} 26. exf6 {[%clk 0:00:45.1]} 26... Ngxf6
{[%clk 0:00:55.1]} 27. Rc7 {[%clk 0:00:34.3]} 27... Rxa2 {[%clk 0:00:53.1]} 28.
Bxe4 {[%clk 0:00:28.4]} 28... Nxe4 {[%clk 0:00:40.6]} 29. Ne6 {[%clk 0:00:28.6]}
1-0

[Event "Early-Titled-Tuesday-Blitz-March-19-2024"]
[Site "Chess.com"]
[Date "2024.03.19"]
[Round "2"]
[White "The_Straightforward_Rook"]
[Black "Airquake"]
[Result "1-0"]
[WhiteElo "2431"]
[BlackElo "2644"]
[TimeControl "180+1"]
[EndTime "8:17:06 PDT"]
[Termination "The_Straightforward_Rook won on time"]

1. e4 {[%clk 0:03:00.5]} 1... b6 {[%clk 0:02:59.4]} 2. Nf3 {[%clk 0:02:55.3]}
2... Bb7 {[%clk 0:02:59.1]} 3. Nc3 {[%clk 0:02:53.7]} 3... g6 {[%clk 0:02:55.6]}
4. d4 {[%clk 0:02:51.9]} 4... Bg7 {[%clk 0:02:56.1]} 5. Bd3 {[%clk 0:02:51.2]}
5... Nf6 {[%clk 0:02:56.3]} 6. O-O {[%clk 0:02:50.3]} 6... O-O {[%clk
0:02:56.4]} 7. Re1 {[%clk 0:02:50.2]} 7... d6 {[%clk 0:02:56.5]} 8. a4 {[%clk
0:02:48.6]} 8... Re8 {[%clk 0:02:55.5]} 9. a5 {[%clk 0:02:46.9]} 9... e5 {[%clk
0:02:54.9]} 10. a6 {[%clk 0:02:43]} 10... Bc8 {[%clk 0:02:52.3]} 11. d5 {[%clk
0:02:42.7]} 11... c6 {[%clk 0:02:44.6]} 12. dxc6 {[%clk 0:02:39.9]} 12... Nxc6
{[%clk 0:02:44.7]} 13. Bb5 {[%clk 0:02:39.6]} 13... Bd7 {[%clk 0:02:06.2]} 14.
Qxd6 {[%clk 0:02:38.8]} 14... Re6 {[%clk 0:02:04.8]} 15. Qd1 {[%clk 0:02:33.8]}
15... Nd4 {[%clk 0:01:57.2]} 16. Nxd4 {[%clk 0:02:26.2]} 16... exd4 {[%clk
0:01:50.2]} 17. Qxd4 {[%clk 0:02:27.1]} 17... Qc7 {[%clk 0:00:24.2]} 18. e5
{[%clk 0:02:12.5]} 18... Bxb5 {[%clk 0:00:24]} 19. Nxb5 {[%clk 0:02:09.9]} 19...
Qxc2 {[%clk 0:00:24.4]} 20. Bf4 {[%clk 0:01:59.5]} 20... Ne8 {[%clk 0:00:19.7]}
21. Qd5 {[%clk 0:01:44.7]} 21... Qc8 {[%clk 0:00:07.6]} 22. Rac1 {[%clk
0:01:40.7]} 22... Qb8 {[%clk 0:00:07.7]} 23. Qb7 {[%clk 0:01:32.6]} 23... Bf8
{[%clk 0:00:04.1]} 24. Nc7 {[%clk 0:01:29.9]} 24... Nxc7 {[%clk 0:00:03.1]} 25.
Rxc7 {[%clk 0:01:30.8]} 25... Qe8 {[%clk 0:00:03.3]} 26. Rec1 {[%clk 0:01:25.1]}
26... Bc5 {[%clk 0:00:03.3]} 27. h4 {[%clk 0:01:19.9]} 27... Rd8 {[%clk
0:00:02.9]} 28. Qxa7 {[%clk 0:01:17]} 28... Rd4 {[%clk 0:00:01.4]} 29. Bg3
{[%clk 0:01:14.9]} 29... Rxe5 {[%clk 0:00:01.6]} 30. Bxe5 {[%clk 0:01:10.2]}
30... Qxe5 {[%clk 0:00:02.5]} 31. Qb8+ {[%clk 0:01:10.3]} 31... Kg7 {[%clk
0:00:02.3]} 32. Rxf7+ {[%clk 0:01:10.6]} 32... Kxf7 {[%clk 0:00:02.4]} 33. Qxe5
{[%clk 0:01:11.2]} 1-0

[Event "Early-Titled-Tuesday-Blitz-March-19-2024"]
[Site "Chess.com"]
[Date "2024.03.19"]
[Round "2"]
[White "Defend1r"]
[Black "nihalsarin"]
[Result "0-1"]
[WhiteElo "2725"]
[BlackElo "3174"]
[TimeControl "180+1"]
[EndTime "8:17:07 PDT"]
[Termination "nihalsarin won by resignation"]

1. e4 {[%clk 0:03:00.9]} 1... a6 {[%clk 0:02:57.8]} 2. Nf3 {[%clk 0:02:55.5]}
2... c6 {[%clk 0:02:48.4]} 3. d3 {[%clk 0:02:44.1]} 3... d5 {[%clk 0:02:44]} 4.
Nbd2 {[%clk 0:02:44.3]} 4... Bg4 {[%clk 0:02:33.3]} 5. g3 {[%clk 0:02:43.2]}
5... e6 {[%clk 0:02:31.7]} 6. Bg2 {[%clk 0:02:43.4]} 6... Bc5 {[%clk 0:02:30.8]}
7. O-O {[%clk 0:02:43.7]} 7... Nf6 {[%clk 0:02:30.8]} 8. Qe2 {[%clk 0:02:36.2]}
8... O-O {[%clk 0:02:29.4]} 9. h3 {[%clk 0:02:33.4]} 9... Bh5 {[%clk 0:02:27.5]}
10. g4 {[%clk 0:02:28.8]} 10... Bg6 {[%clk 0:02:26.8]} 11. Ne5 {[%clk
0:02:28.9]} 11... Nbd7 {[%clk 0:02:22.4]} 12. Nxg6 {[%clk 0:02:15]} 12... fxg6
{[%clk 0:02:22.3]} 13. Nb3 {[%clk 0:02:07.4]} 13... Bb6 {[%clk 0:02:21.3]} 14.
exd5 {[%clk 0:02:03]} 14... exd5 {[%clk 0:02:20.7]} 15. Bf4 {[%clk 0:02:02.5]}
15... Bc7 {[%clk 0:02:17.2]} 16. Qd2 {[%clk 0:01:40.2]} 16... a5 {[%clk
0:01:55.8]} 17. Nd4 {[%clk 0:01:33.6]} 17... Bxf4 {[%clk 0:01:51.1]} 18. Qxf4
{[%clk 0:01:32.6]} 18... Nh5 {[%clk 0:01:51.8]} 19. Qd6 {[%clk 0:01:23.1]} 19...
Nf4 {[%clk 0:01:52.4]} 20. Ne6 {[%clk 0:01:23.1]} 20... Nxe6 {[%clk 0:01:52.2]}
21. Qxe6+ {[%clk 0:01:24]} 21... Kh8 {[%clk 0:01:53.1]} 22. Rae1 {[%clk
0:01:17.3]} 22... g5 {[%clk 0:01:49.7]} 23. c4 {[%clk 0:01:13.6]} 23... Nc5
{[%clk 0:01:41]} 24. Qe3 {[%clk 0:01:07.1]} 24... d4 {[%clk 0:01:41.2]} 25. Qg3
{[%clk 0:01:06.8]} 25... Qf6 {[%clk 0:01:38.5]} 26. Re5 {[%clk 0:01:01.4]} 26...
Qd6 {[%clk 0:01:07.5]} 27. Rfe1 {[%clk 0:00:58.7]} 27... h6 {[%clk 0:01:06.1]}
28. Bf1 {[%clk 0:00:42.7]} 28... Kh7 {[%clk 0:00:47.8]} 29. h4 {[%clk
0:00:41.2]} 29... gxh4 {[%clk 0:00:48.3]} 30. Qxh4 {[%clk 0:00:39.7]} 30... Rf4
{[%clk 0:00:49]} 31. Re6 {[%clk 0:00:30.4]} 31... Nxe6 {[%clk 0:00:48.4]} 0-1

[Event "Early-Titled-Tuesday-Blitz-March-19-2024"]
[Site "Chess.com"]
[Date "2024.03.19"]
[Round "2"]
[White "VincentKeymer"]
[Black "Sofia_Blokhin"]
[Result "1-0"]
[WhiteElo "3060"]
[BlackElo "2243"]
[TimeControl "180+1"]
[EndTime "8:17:08 PDT"]
[Termination "VincentKeymer won by resignation"]

1. a3 {[%clk 0:03:00.9]} 1... d5 {[%clk 0:02:59.2]} 2. Nf3 {[%clk 0:03:00.8]}
2... Nf6 {[%clk 0:02:58.9]} 3. e3 {[%clk 0:03:01]} 3... e6 {[%clk 0:02:59.3]} 4.
c4 {[%clk 0:02:59.9]} 4... Be7 {[%clk 0:02:58.8]} 5. b4 {[%clk 0:02:59.8]} 5...
O-O {[%clk 0:02:58.4]} 6. Bb2 {[%clk 0:03:00.2]} 6... a5 {[%clk 0:02:58.4]} 7.
b5 {[%clk 0:03:00.4]} 7... dxc4 {[%clk 0:02:57]} 8. Bxc4 {[%clk 0:02:59.9]} 8...
Nbd7 {[%clk 0:02:52.6]} 9. O-O {[%clk 0:02:54]} 9... Nb6 {[%clk 0:02:51.5]} 10.
Be2 {[%clk 0:02:54]} 10... Nbd5 {[%clk 0:02:48.8]} 11. d4 {[%clk 0:02:52.4]}
11... Bd7 {[%clk 0:02:41.3]} 12. Nbd2 {[%clk 0:02:52.1]} 12... c6 {[%clk
0:02:29]} 13. bxc6 {[%clk 0:02:47.8]} 13... Bxc6 {[%clk 0:02:23.8]} 14. Ne5
{[%clk 0:02:46.4]} 14... Be8 {[%clk 0:02:15.4]} 15. Re1 {[%clk 0:02:46.3]} 15...
Nd7 {[%clk 0:02:11.9]} 16. Nd3 {[%clk 0:02:45.6]} 16... Rc8 {[%clk 0:02:07.2]}
17. e4 {[%clk 0:02:45.6]} 17... N5f6 {[%clk 0:02:03.9]} 18. Rb1 {[%clk
0:02:42.9]} 18... Nb8 {[%clk 0:01:52.5]} 19. Bf3 {[%clk 0:02:21.2]} 19... Nc6
{[%clk 0:01:50.8]} 20. d5 {[%clk 0:02:21.6]} 20... exd5 {[%clk 0:01:38.7]} 21.
e5 {[%clk 0:02:22]} 21... Ne4 {[%clk 0:01:28.4]} 22. Nxe4 {[%clk 0:02:21.5]}
22... dxe4 {[%clk 0:01:28.1]} 23. Bxe4 {[%clk 0:02:22.4]} 23... Bd7 {[%clk
0:01:24.7]} 24. Qh5 {[%clk 0:02:14.3]} 24... g6 {[%clk 0:01:21]} 25. Qh6 {[%clk
0:02:14.2]} 25... Be6 {[%clk 0:01:20]} 26. Rbd1 {[%clk 0:02:14.7]} 26... Qb6
{[%clk 0:01:15.3]} 27. h4 {[%clk 0:02:04.5]} 27... Rfd8 {[%clk 0:01:14.1]} 28.
h5 {[%clk 0:02:04.1]} 28... Bf8 {[%clk 0:01:09]} 29. Qg5 {[%clk 0:02:03.1]}
29... Be7 {[%clk 0:01:04]} 30. Qg3 {[%clk 0:02:03]} 30... Rxd3 {[%clk
0:00:52.9]} 31. Rxd3 {[%clk 0:01:52.5]} 31... Qxb2 {[%clk 0:00:52.6]} 32. hxg6
{[%clk 0:01:53.2]} 32... Qxe5 {[%clk 0:00:31.7]} 33. gxf7+ {[%clk 0:01:35.4]}
33... Kh8 {[%clk 0:00:31.5]} 34. Qxe5+ {[%clk 0:01:14.2]} 34... Nxe5 {[%clk
0:00:30.7]} 35. Rde3 {[%clk 0:01:15.1]} 35... Bf6 {[%clk 0:00:18.1]} 36. Bxb7
{[%clk 0:01:14.9]} 36... Rf8 {[%clk 0:00:17.8]} 37. Rxe5 {[%clk 0:01:14.8]}
37... Bxe5 {[%clk 0:00:17.5]} 38. Rxe5 {[%clk 0:01:15.7]} 38... Bxf7 {[%clk
0:00:17.8]} 39. Rxa5 {[%clk 0:01:15.7]} 39... Rb8 {[%clk 0:00:17.5]} 40. Ra8
{[%clk 0:01:15.6]} 40... Rxa8 {[%clk 0:00:17.3]} 41. Bxa8 {[%clk 0:01:16.5]}
41... Kg7 {[%clk 0:00:17.2]} 42. a4 {[%clk 0:01:16.3]} 42... Bc4 {[%clk
0:00:16.9]} 43. Bb7 {[%clk 0:01:15.8]} 43... Kf6 {[%clk 0:00:16.7]} 44. a5
{[%clk 0:01:16.3]} 1-0

[Event "Early-Titled-Tuesday-Blitz-March-19-2024"]
[Site "Chess.com"]
[Date "2024.03.19"]
[Round "2"]
[White "TigrVShlyape"]
[Black "Let_it_be_1"]
[Result "1-0"]
[WhiteElo "2917"]
[BlackElo "2623"]
[TimeControl "180+1"]
[EndTime "8:17:09 PDT"]
[Termination "TigrVShlyape won by resignation"]

1. d4 {[%clk 0:03:00.9]} 1... d5 {[%clk 0:02:59.6]} 2. Bf4 {[%clk 0:02:56.5]}
2... e6 {[%clk 0:02:59.6]} 3. e3 {[%clk 0:02:49.5]} 3... Bd6 {[%clk 0:02:59.6]}
4. Nf3 {[%clk 0:02:42.1]} 4... Bxf4 {[%clk 0:02:58.9]} 5. exf4 {[%clk
0:02:41.7]} 5... Ne7 {[%clk 0:02:59.5]} 6. c3 {[%clk 0:02:40.4]} 6... b6 {[%clk
0:02:58]} 7. Nbd2 {[%clk 0:02:40.2]} 7... O-O {[%clk 0:02:57.3]} 8. h4 {[%clk
0:02:30.9]} 8... c5 {[%clk 0:02:56.4]} 9. h5 {[%clk 0:02:30.4]} 9... h6 {[%clk
0:02:56.5]} 10. Nb3 {[%clk 0:02:21.1]} 10... Qd6 {[%clk 0:02:53.9]} 11. g3
{[%clk 0:02:19.3]} 11... Ba6 {[%clk 0:02:50.7]} 12. Bxa6 {[%clk 0:02:18.3]}
12... Nxa6 {[%clk 0:02:50.9]} 13. Qe2 {[%clk 0:02:18.8]} 13... Nb8 {[%clk
0:02:49.8]} 14. Kf1 {[%clk 0:02:14.4]} 14... Nbc6 {[%clk 0:02:46.9]} 15. Kg2
{[%clk 0:02:14.6]} 15... Rac8 {[%clk 0:02:41.4]} 16. a3 {[%clk 0:02:11.1]} 16...
cxd4 {[%clk 0:02:40.7]} 17. Nbxd4 {[%clk 0:02:10.3]} 17... Nxd4 {[%clk
0:02:36.5]} 18. Nxd4 {[%clk 0:02:08.8]} 18... Nc6 {[%clk 0:02:36.4]} 19. Rad1
{[%clk 0:02:04.6]} 19... Rfe8 {[%clk 0:02:27.7]} 20. Nxc6 {[%clk 0:02:01.9]}
20... Qxc6 {[%clk 0:02:18.7]} 21. Rd4 {[%clk 0:02:00.8]} 21... b5 {[%clk
0:02:13.3]} 22. Qf3 {[%clk 0:01:50.7]} 22... Qb7 {[%clk 0:02:06.4]} 23. Re1
{[%clk 0:01:44.6]} 23... a5 {[%clk 0:01:21.2]} 24. f5 {[%clk 0:01:44.1]} 24...
exf5 {[%clk 0:01:15.1]} 25. Rxe8+ {[%clk 0:01:42.9]} 25... Rxe8 {[%clk
0:01:15.2]} 26. Rxd5 {[%clk 0:01:40.3]} 26... b4 {[%clk 0:01:04.9]} 27. cxb4
{[%clk 0:01:29.6]} 27... axb4 {[%clk 0:01:04.2]} 28. a4 {[%clk 0:01:25.5]} 28...
g6 {[%clk 0:00:51.5]} 29. hxg6 {[%clk 0:01:24.5]} 29... fxg6 {[%clk 0:00:51.4]}
30. Rxf5 {[%clk 0:01:23]} 30... Qxf3+ {[%clk 0:00:20.6]} 31. Rxf3 {[%clk
0:01:21.5]} 31... Ra8 {[%clk 0:00:19.3]} 32. b3 {[%clk 0:01:20.5]} 32... Kg7
{[%clk 0:00:18.7]} 33. Rf4 {[%clk 0:01:19.5]} 33... Rb8 {[%clk 0:00:18.6]} 34.
Rc4 {[%clk 0:01:17.4]} 34... Kf6 {[%clk 0:00:17.8]} 35. Rc6+ {[%clk 0:01:16.5]}
35... Kf5 {[%clk 0:00:17.9]} 36. Kf3 {[%clk 0:01:13.4]} 36... h5 {[%clk
0:00:17.9]} 37. Rc5+ {[%clk 0:01:13.3]} 37... Kf6 {[%clk 0:00:17.7]} 38. Kf4
{[%clk 0:01:08.9]} 38... Rb6 {[%clk 0:00:14.4]} 39. Rb5 {[%clk 0:01:06.6]} 1-0

[Event "Early-Titled-Tuesday-Blitz-March-19-2024"]
[Site "Chess.com"]
[Date "2024.03.19"]
[Round "2"]
[White "vasblesk"]
[Black "emeli_chess"]
[Result "1-0"]
[WhiteElo "2780"]
[BlackElo "2424"]
[TimeControl "180+1"]
[EndTime "8:17:11 PDT"]
[Termination "vasblesk won by resignation"]

1. d4 {[%clk 0:03:00.9]} 1... Nf6 {[%clk 0:02:59.8]} 2. c4 {[%clk 0:02:54.5]}
2... e6 {[%clk 0:02:59.9]} 3. g3 {[%clk 0:02:54.1]} 3... d5 {[%clk 0:02:59.2]}
4. Bg2 {[%clk 0:02:54.3]} 4... dxc4 {[%clk 0:02:59.3]} 5. Nf3 {[%clk 0:02:53.3]}
5... Nc6 {[%clk 0:02:57.2]} 6. O-O {[%clk 0:02:52.9]} 6... Rb8 {[%clk
0:02:56.9]} 7. a4 {[%clk 0:02:51.7]} 7... a6 {[%clk 0:02:56.6]} 8. a5 {[%clk
0:02:50.9]} 8... Bd6 {[%clk 0:02:55.4]} 9. Nbd2 {[%clk 0:02:47.8]} 9... e5
{[%clk 0:02:51.4]} 10. dxe5 {[%clk 0:02:33.7]} 10... Nxe5 {[%clk 0:02:50.8]} 11.
Nxe5 {[%clk 0:02:33.7]} 11... Bxe5 {[%clk 0:02:51]} 12. Nxc4 {[%clk 0:02:34.6]}
12... Qxd1 {[%clk 0:02:18.6]} 13. Rxd1 {[%clk 0:02:33.1]} 13... Nd7 {[%clk
0:02:16.3]} 14. Nxe5 {[%clk 0:02:08.4]} 14... Nxe5 {[%clk 0:02:16.1]} 15. Bf4
{[%clk 0:02:08.8]} 15... f6 {[%clk 0:02:15.2]} 16. Rac1 {[%clk 0:02:07.1]} 16...
c6 {[%clk 0:02:09.2]} 17. Bxe5 {[%clk 0:01:55.9]} 17... fxe5 {[%clk 0:02:08.9]}
18. Rc5 {[%clk 0:01:56]} 18... O-O {[%clk 0:02:02]} 19. Rxe5 {[%clk 0:01:55.2]}
19... Bg4 {[%clk 0:01:55]} 20. f3 {[%clk 0:01:51.3]} 20... Bf5 {[%clk
0:01:43.8]} 21. e4 {[%clk 0:01:48.4]} 21... Bg6 {[%clk 0:01:42.6]} 22. Re7
{[%clk 0:01:45.3]} 22... b6 {[%clk 0:01:40.7]} 23. f4 {[%clk 0:00:58.4]} 23...
bxa5 {[%clk 0:01:37.5]} 24. f5 {[%clk 0:00:56.3]} 24... Bh5 {[%clk 0:01:18.8]}
25. g4 {[%clk 0:00:55.8]} 25... Bxg4 {[%clk 0:01:15]} 26. Rdd7 {[%clk
0:00:52.5]} 26... Rfd8 {[%clk 0:00:35.8]} 27. Rxg7+ {[%clk 0:00:50.5]} 27... Kf8
{[%clk 0:00:35.7]} 28. Rxd8+ {[%clk 0:00:50.3]} 28... Rxd8 {[%clk 0:00:35.2]}
29. Rxg4 {[%clk 0:00:50.3]} 29... Rd1+ {[%clk 0:00:34.2]} 30. Bf1 {[%clk
0:00:48.5]} 30... Rd2 {[%clk 0:00:32.5]} 31. Rg2 {[%clk 0:00:47]} 31... Rd4
{[%clk 0:00:32.5]} 32. Re2 {[%clk 0:00:46.2]} 32... Ke7 {[%clk 0:00:32.5]} 33.
e5 {[%clk 0:00:43.1]} 33... a4 {[%clk 0:00:31.2]} 34. f6+ {[%clk 0:00:41.9]}
34... Ke6 {[%clk 0:00:31]} 35. Bh3+ {[%clk 0:00:41.4]} 35... Kf7 {[%clk
0:00:29.6]} 36. e6+ {[%clk 0:00:41.2]} 1-0